fUSD/lending_fUSD_20251201
["ID","MTS","AMOUNT","RATE_DAILY","PERIOD"]
[395237526,1764561040081,-736.0,0.00016102,2]
[395237527,1764561040091,-277.67,0.00016116,2]
[395237528,1764561040101,-400.14865854,0.00016148,2]
[395237529,1764561040111,-500.0,0.00016148,2]
[395237530,1764561040120,-500.0,0.00016148,2]
[395237531,1764561040129,-8000.0,0.00016149,2]
[395237532,1764561040139,-257.91778498,0.00016149,2]
[395237533,1764561040148,-160.0,0.00016149,2]
[395237534,1764561040158,-151.0,0.00016149,2]
[395237535,1764561040166,-151.0,0.00016149,2]
[395237536,1764561040175,-8000.0,0.00016149,2]
[395237537,1764561040185,-151.0,0.00016149,2]
[395237538,1764561040194,-151.0,0.00016149,2]
[395237539,1764561040203,-8000.0,0.00016149,2]
[395237540,1764561040212,-183.84418245,0.00016149,2]
[395237542,1764561040221,-151.0,0.00016149,2]
[395237543,1764561040231,-8000.0,0.00016149,2]
[395237544,1764561040241,-151.0,0.00016149,2]
[395237545,1764561040251,-8000.0,0.00016149,2]
[395237546,1764561040261,-151.0,0.00016149,2]
[395237547,1764561040271,-5476.15946739,0.00016149,2]
[395237548,1764561040281,-151.0,0.00016149,2]
[395237549,1764561040292,-151.0,0.00016149,2]
[395237550,1764561040302,-533.88981491,0.00016149,2]
[395237551,1764561040312,-151.0,0.00016149,2]
[395237552,1764561040323,-151.0,0.00016149,2]
[395237553,1764561040332,-151.0,0.00016149,2]
[395237554,1764561040343,-151.0,0.00016149,2]
[395237555,1764561040354,-151.0,0.00016149,2]
[395237556,1764561040363,-151.0,0.00016149,2]
[395237557,1764561040374,-151.0,0.00016149,2]
[395237558,1764561040383,-1000.0,0.00016149,2]
[395237559,1764561040393,-1000.0,0.00016149,2]
[395237560,1764561040403,-183.70217519,0.00016149,2]
[395237561,1764561040412,-194.72792766,0.00016149,2]
[395237562,1764561040422,-1000.0,0.00016149,2]
[395237563,1764561040431,-1000.0,0.00016149,2]
[395237564,1764561040441,-1000.0,0.00016149,2]
[395237565,1764561040450,-1000.0,0.00016149,2]
[395237566,1764561040460,-1000.0,0.00016149,2]
[395237567,1764561040469,-250.0,0.00016149,2]
[395237568,1764561040478,-1000.0,0.00016149,2]
[395237569,1764561040487,-250.0,0.00016149,2]
[395237570,1764561040496,-1000.0,0.00016149,2]
[395237571,1764561040505,-250.0,0.00016149,2]
[395237572,1764561040514,-1000.0,0.00016149,2]
[395237573,1764561040523,-250.0,0.00016149,2]
[395237574,1764561040532,-1000.0,0.00016149,2]
[395237575,1764561040543,-250.0,0.00016149,2]
[395237576,1764561040552,-500.0,0.00016149,2]
[395237577,1764561040561,-1000.0,0.00016149,2]
[395237578,1764561040571,-250.0,0.00016149,2]
[395237579,1764561040582,-500.0,0.00016149,2]
[395237580,1764561040591,-151.0,0.00016149,2]
[395237581,1764561040599,-1000.0,0.00016149,2]
[395237582,1764561040609,-151.0,0.00016149,2]
[395237583,1764561040618,-250.0,0.00016149,2]
[395237584,1764561040627,-500.0,0.00016149,2]
[395237585,1764561040636,-1000.0,0.00016149,2]
[395237586,1764561040645,-250.0,0.00016149,2]
[395237587,1764561040655,-500.0,0.00016149,2]
[395237588,1764561040664,-1000.0,0.00016149,2]
[395237589,1764561040679,-250.0,0.00016149,2]
[395237590,1764561040689,-500.0,0.00016149,2]
[395237591,1764561040699,-1000.0,0.00016149,2]
[395237592,1764561040711,-250.0,0.00016149,2]
[395237593,1764561040722,-500.0,0.00016149,2]
[395237594,1764561040731,-1000.0,0.00016149,2]
[395237595,1764561040741,-250.0,0.00016149,2]
[395237596,1764561040752,-500.0,0.00016149,2]
[395237597,1764561040761,-500.0,0.00016149,2]
[395237598,1764561040770,-1000.0,0.00016149,2]
[395237599,1764561040779,-250.0,0.00016149,2]
[395237600,1764561040788,-500.0,0.00016149,2]
[395237601,1764561040799,-500.0,0.00016149,2]
[395237602,1764561040809,-1000.0,0.00016149,2]
[395237603,1764561040818,-250.0,0.00016149,2]
[395237604,1764561040830,-500.0,0.00016149,2]
[395237605,1764561040840,-500.0,0.00016149,2]
[395237606,1764561040850,-1000.0,0.00016149,2]
[395237607,1764561040859,-500.0,0.00016149,2]
[395237608,1764561040869,-500.0,0.00016149,2]
[395237609,1764561040879,-1000.0,0.00016149,2]
[395237610,1764561040888,-500.0,0.00016149,2]
[395237611,1764561040897,-500.0,0.00016149,2]
[395237612,1764561040906,-1000.0,0.00016149,2]
[395237613,1764561040915,-322.6107,0.00016149,2]
[395237614,1764561040924,-500.0,0.00016149,2]
[395237615,1764561040934,-500.0,0.00016149,2]
[395237616,1764561040943,-1000.0,0.00016149,2]
[395237617,1764561040952,-500.0,0.00016149,2]
[395237618,1764561040961,-500.0,0.00016149,2]
[395237619,1764561040971,-1000.0,0.00016149,2]
[395237620,1764561040981,-500.0,0.00016149,2]
[395237621,1764561040990,-1000.0,0.00016149,2]
[395237622,1764561041000,-500.0,0.00016149,2]
[395237623,1764561041010,-1000.0,0.00016149,2]
[395237624,1764561041019,-500.0,0.00016149,2]
[395237625,1764561041029,-500.0,0.00016149,2]
[395237626,1764561041038,-500.0,0.00016149,2]
[395237627,1764561041047,-500.0,0.00016149,2]
[395237628,1764561041056,-500.0,0.00016149,2]
[395237629,1764561041066,-500.0,0.00016149,2]
[395237630,1764561041077,-500.0,0.00016149,2]
[395237631,1764561041089,-250.0,0.00016149,2]
[395237632,1764561041098,-250.39585961,0.00016149,2]
[395237633,1764561041108,-250.0,0.00016149,2]
[395237634,1764561041118,-250.0,0.00016149,2]
[395237635,1764561041127,-250.0,0.00016149,2]
[395237636,1764561041137,-578.20924308,0.00016149,2]
[395237637,1764561041146,-250.0,0.00016149,2]
[395237638,1764561041156,-3000.0,0.00016149,2]
[395237639,1764561041166,-250.0,0.00016149,2]
[395237640,1764561041177,-250.0,0.00016149,2]
[395237641,1764561041187,-250.0,0.00016149,2]
[395237642,1764561041196,-250.0,0.00016149,2]
[395237643,1764561041205,-250.0,0.00016149,2]
[395237644,1764561041214,-250.0,0.00016149,2]
[395237645,1764561041224,-250.0,0.00016149,2]
[395237646,1764561041234,-250.0,0.00016149,2]
[395237647,1764561041244,-620.0,0.00016149,2]
[395237648,1764561041253,-300.0,0.00016149,2]
[395237649,1764561041263,-250.0,0.00016149,2]
[395237650,1764561041276,-250.0,0.00016149,2]
[395237651,1764561041285,-250.0,0.00016149,2]
[395237652,1764561041295,-250.0,0.00016149,2]
[395237653,1764561041305,-250.0,0.00016149,2]
[395237654,1764561041318,-250.0,0.00016149,2]
[395237655,1764561041327,-250.0,0.00016149,2]
[395237656,1764561041336,-250.0,0.00016149,2]
[395237657,1764561041345,-250.0,0.00016149,2]
[395237658,1764561041354,-250.0,0.00016149,2]
[395237659,1764561041364,-250.0,0.00016149,2]
[395237660,1764561041373,-250.0,0.00016149,2]
[395237661,1764561041383,-250.0,0.00016149,2]
[395237662,1764561041392,-150.0,0.00016228,2]
[395237663,1764561041401,-180.65552809,0.00016365,2]
[395237664,1764561041410,-500.0,0.00016438,2]
[395237665,1764561041419,-13051.53,0.00016438,2]
[395237666,1764561041428,-322.63,0.00016438,2]
[395237667,1764561041438,-250.0,0.0001644,2]
[395237668,1764561041447,-163.95,0.0001644,2]
[395237669,1764561041458,-1378.35523951,0.00016504,2]
[395237670,1764561041467,-600.0,0.00016504,2]
[395237671,1764561041717,-692.0,0.00016506,2]
[395237672,1764561041727,-692.0,0.00016534,2]
[395237673,1764561041736,-500.0,0.00016575,2]
[395237674,1764561041745,-165.73,0.00016603,2]
[395237675,1764561041755,-3019.996,0.00016603,2]
[395237676,1764561041764,-692.0,0.00016638,2]
[395237677,1764561041774,-2745.82517817,0.0001666,2]
[395237678,1764561041783,-3292.0,0.00016691,2]
[395237679,1764561041792,-151.0,0.00016697,2]
[395237680,1764561041801,-553.64373807,0.00016697,2]
[395237681,1764561041811,-151.0,0.00016697,2]
[395237682,1764561041820,-201.93286099,0.00016697,2]
[395237683,1764561041830,-151.0,0.00016697,2]
[395237684,1764561041839,-3000.0,0.00016697,2]
[395237685,1764561041848,-642.94,0.00016697,2]
[395237686,1764561041858,-1000.0,0.000167,2]
[395237687,1764561041868,-163.1222244,0.00016712,2]
[395237688,1764561041877,-427.65493559,0.00016732,2]
[395237689,1764561041886,-1737.69823801,0.00016746,2]
[395237690,1764561041895,-963.07551786,0.00016798,2]
[395237691,1764561041905,-963.07551786,0.00016815,2]
[395237692,1764561041914,-5167.13032,0.0001683,2]
[395237693,1764561041923,-692.0,0.00016831,2]
[395237694,1764561041932,-963.07551786,0.00016832,2]
[395237695,1764561041943,-963.07551786,0.00016849,2]
[395237696,1764561041952,-218.12886692,0.00016853,2]
[395237697,1764561041961,-2000.0,0.00016864,2]
[395237698,1764561041970,-963.07551786,0.00016866,2]
[395237699,1764561041979,-963.07551786,0.00016883,2]
[395237700,1764561041988,-215.61919432,0.00016888,2]
[395237701,1764561041998,-151.0,0.00016895,2]
[395237702,1764561042007,-500.0,0.00016897,2]
[395237703,1764561042016,-500.0,0.00016897,2]
[395237704,1764561042027,-500.0,0.00016897,2]
[395237705,1764561042035,-500.0,0.00016897,2]
[395237706,1764561042045,-1231.98120029,0.00016897,5]
[395237707,1764561042053,-500.0,0.00016897,2]
[395237708,1764561042064,-190.11352701,0.00016897,2]
[395237709,1764561042073,-500.0,0.00016897,2]
[395237710,1764561042082,-500.0,0.00016897,2]
[395237711,1764561042092,-500.0,0.00016897,2]
[395237712,1764561042102,-500.0,0.00016897,2]
[395237713,1764561042111,-500.0,0.00016897,2]
[395237714,1764561042120,-500.0,0.00016897,2]
[395237715,1764561042130,-524.15106489,0.00016897,2]
[395237716,1764561042139,-500.0,0.00016897,2]
[395237717,1764561042148,-500.0,0.00016897,2]
[395237718,1764561042158,-500.0,0.00016897,2]
[395237719,1764561042167,-500.0,0.00016897,2]
[395237720,1764561042177,-500.0,0.00016897,2]
[395237721,1764561042186,-500.0,0.00016897,2]
[395237722,1764561042195,-500.0,0.00016897,2]
[395237723,1764561042205,-500.0,0.00016897,2]
[395237724,1764561042214,-500.0,0.00016897,2]
[395237725,1764561042224,-500.0,0.00016897,2]
[395237726,1764561042234,-545.80682701,0.00016897,2]
[395237727,1764561042243,-500.0,0.00016897,2]
[395237728,1764561042252,-500.0,0.00016897,2]
[395237729,1764561042262,-500.0,0.00016897,2]
[395237730,1764561042271,-500.0,0.00016897,2]
[395237731,1764561042280,-530.10808563,0.00016897,2]
[395237732,1764561042289,-760000.0,0.00016898,2]
[395237733,1764561042299,-386.64342501,0.000169,3]
[395237734,1764561042308,-2649.0442,0.000169,2]
[395237735,1764561042317,-963.07551786,0.000169,2]
[395237736,1764561042326,-1378.35523951,0.000169,2]
[395237737,1764561042335,-8210.0,0.000169,2]
[395237738,1764561042344,-692.0,0.00016913,2]
[395237739,1764561042353,-238.0,0.00016918,2]
[395237740,1764561042362,-500.0,0.00016921,2]
[395237741,1764561042371,-500.0,0.00016921,2]
[395237742,1764561042380,-500.0,0.00016921,2]
[395237743,1764561042389,-500.0,0.00016921,2]
[395237744,1764561042398,-500.0,0.00016921,2]
[395237745,1764561042406,-9999.99,0.00016922,2]
[395237746,1764561042415,-19443.82,0.00016922,2]
[395237749,1764561042424,-90162.38068441,0.0001695,2]
[395237750,1764561042433,-500.0,0.00016964,2]
[395237751,1764561042442,-500.0,0.00016964,2]
[395237752,1764561042450,-500.0,0.00016964,2]
[395237753,1764561042459,-500.0,0.00016964,2]
[395237754,1764561042468,-500.0,0.00016964,2]
[395237755,1764561042476,-5787.5212631,0.00016965,2]
[395237757,1764561042486,-240031.6180294,0.00016965,2]
[395237758,1764561042495,-12456.5112624,0.00016965,2]
[395237759,1764561042504,-664.7623187,0.00016965,2]
[395237760,1764561042512,-65508.7639488,0.00016965,2]
[395237761,1764561042521,-504.71228777,0.00016973,2]
[395237762,1764561042530,-500.0,0.00016973,2]
[395237763,1764561042538,-160.03289921,0.00016973,2]
[395237764,1764561042547,-500.0,0.00016973,2]
[395237765,1764561042556,-500.0,0.00016973,2]
[395237766,1764561042565,-500.0,0.00016973,2]
[395237767,1764561042574,-500.0,0.00016973,2]
[395237768,1764561042583,-206.01551169,0.00016973,2]
[395237769,1764561042593,-213.79343577,0.00016973,2]
[395237770,1764561042602,-500.0,0.00016973,2]
[395237771,1764561042611,-500.0,0.00016973,2]
[395237772,1764561042620,-500.45943647,0.00016973,2]
[395237773,1764561042630,-500.0,0.00016973,2]
[395237774,1764561042638,-500.0,0.00016973,2]
[395237775,1764561042647,-506.27683139,0.00016973,2]
[395237776,1764561042656,-500.0,0.00016973,2]
[395237777,1764561042668,-499.90161086,0.00016973,2]
[395237778,1764561042678,-500.0,0.00016973,2]
[395237779,1764561042687,-500.0,0.00016973,2]
[395237780,1764561042696,-500.0,0.00016973,2]
[395237781,1764561042707,-500.62734798,0.00016973,2]
[395237782,1764561042717,-586.42715679,0.00016973,2]
[395237783,1764561042727,-500.0,0.00016973,2]
[395237784,1764561042736,-217.00327303,0.00016973,2]
[395237785,1764561042745,-356.06806903,0.00016973,2]
[395237786,1764561042754,-569.20900345,0.00016973,2]
[395237787,1764561042763,-409.96658599,0.00016973,2]
[395237788,1764561042772,-494.55213464,0.00016973,2]
[395237789,1764561042782,-500.0,0.00016973,2]
[395237790,1764561042791,-453.79493009,0.00016973,2]
[395237791,1764561042801,-500.0,0.00016973,2]
[395237792,1764561042810,-575.43559045,0.00016973,2]
[395237793,1764561042819,-500.0,0.00016973,2]
[395237794,1764561042828,-500.0,0.00016973,2]
[395237795,1764561042837,-504.52598037,0.00016973,2]
[395237796,1764561042846,-500.0,0.00016973,2]
[395237797,1764561042855,-281.76890158,0.00016973,2]
[395237798,1764561042864,-500.0,0.00016983,2]
[395237799,1764561042873,-692.0,0.00016986,2]
[395237800,1764561042883,-6626.81406724,0.00016997,2]
[395237801,1764561042892,-151.0,0.00016997,2]
[395237802,1764561042901,-2000.0,0.00016997,2]
[395237803,1764561042910,-2000.0,0.00016997,2]
[395237804,1764561042919,-2000.0,0.00016997,2]
[395237805,1764561042928,-94475.6933,0.00016998,2]
[395237806,1764561042937,-300.0,0.00016999,2]
[395237807,1764561042946,-300.0,0.00016999,2]
[395237808,1764561042955,-500.0,0.00016999,2]
[395237809,1764561042963,-500.0,0.00016999,2]
[395237810,1764561042972,-500.0,0.00016999,2]
[395237811,1764561042982,-500.0,0.00016999,2]
[395237812,1764561042991,-540.26417137,0.00016999,2]
[395237813,1764561043000,-300.0,0.00016999,2]
[395237814,1764561043010,-500.0,0.00016999,2]
[395237815,1764561043019,-500.0,0.00016999,2]
[395237816,1764561043028,-500.0,0.00016999,2]
[395237817,1764561043038,-500.0,0.00016999,2]
[395237818,1764561043049,-500.0,0.00016999,2]
[395237819,1764561043058,-510.9486006,0.00016999,2]
[395237820,1764561043070,-500.0,0.00016999,2]
[395237821,1764561043079,-500.0,0.00016999,2]
[395237822,1764561043090,-500.0,0.00016999,2]
[395237823,1764561043100,-500.0,0.00016999,2]
[395237824,1764561043110,-500.0,0.00016999,2]
[395237825,1764561043119,-500.0,0.00016999,2]
[395237826,1764561043129,-500.0,0.00016999,2]
[395237827,1764561043138,-500.0,0.00016999,2]
[395237828,1764561043147,-500.0,0.00016999,2]
[395237829,1764561043158,-500.0,0.00016999,2]
[395237830,1764561043167,-509.8652975,0.00016999,2]
[395237831,1764561043177,-507.32385656,0.00016999,2]
[395237832,1764561043186,-207.74536236,0.00016999,2]
[395237833,1764561043196,-482.63374745,0.00016999,2]
[395237834,1764561043205,-300.0,0.00016999,2]
[395237835,1764561043215,-692.0,0.00017,2]
[395237836,1764561043224,-1250.0,0.00017,2]
[395237837,1764561043234,-832.0,0.00017,2]
[395237838,1764561043243,-1250.0,0.00017,2]
[395237839,1764561043252,-3442.0,0.00017,2]
[395237840,1764561043261,-1322.0,0.00017,2]
[395237841,1764561043272,-610.0,0.00017,2]
[395237842,1764561043282,-1603.0,0.00017,2]
[395237843,1764561043291,-1258.0,0.00017,2]
[395237844,1764561043300,-640.0,0.00017,2]
[395237845,1764561043310,-562.0,0.00017,2]
[395237846,1764561043319,-4564.922,0.00017,2]
[395237847,1764561043329,-85515.57767201,0.00017,2]
[395237848,1764561043340,-61766.29645958,0.00017,2]
[395237849,1764561043351,-771149.81230934,0.00017,2]
[395237850,1764561043361,-396978.98754559,0.00017,2]
[395237851,1764561043370,-411375.1129707,0.00017,2]
[395237852,1764561043380,-250.0,0.00017,2]
[395237853,1764561043389,-250.0,0.00017,2]
[395237854,1764561043399,-250.0,0.00017,2]
[395237855,1764561043409,-250.0,0.00017,2]
[395237856,1764561043418,-250.0,0.00017,2]
[395237857,1764561043427,-250.0,0.00017,2]
[395237858,1764561043439,-250.0,0.00017,2]
[395237859,1764561043448,-250.0,0.00017,2]
[395237860,1764561043459,-250.0,0.00017,2]
[395237861,1764561043468,-250.0,0.00017,2]
[395237862,1764561043479,-250.0,0.00017,2]
[395237863,1764561043489,-250.0,0.00017,2]
[395237864,1764561043499,-250.0,0.00017,2]
[395237865,1764561043509,-250.0,0.00017,2]
[395237866,1764561043517,-250.0,0.00017,2]
[395237867,1764561043527,-250.0,0.00017,2]
[395237868,1764561043536,-250.0,0.00017,2]
[395237869,1764561043545,-250.0,0.00017,2]
[395237870,1764561043554,-203.9,0.00017,2]
[395237871,1764561043563,-151.0,0.00017,2]
[395237872,1764561043573,-214.40103412,0.00017,2]
[395237873,1764561043583,-5002.51708166,0.00017,15]
[395237874,1764561043592,-509.82653,0.00017,2]
[395237875,1764561043601,-490770.3337203,0.00017,2]
[395237876,1764561044862,-4000.0,0.00017,2]
[395237877,1764561044874,-10269.77847723,0.00017,2]
[395237878,1764561044885,-429875.0,0.00017,2]
[395237879,1764561044896,-2101.40307285,0.00017,2]
[395237880,1764561044908,-71841.23489279,0.00017,2]
[395237881,1764561045111,-303.68794345,0.00016973,2]
[395237882,1764561045125,-196.31205655,0.00016973,2]
[395237883,1764561045134,-208.975,0.00016996,2]
[395237884,1764561045147,-429.59999994,0.00016996,2]
[395237885,1764561045160,-361.42500006,0.00016996,2]
[395237886,1764561045169,-427.07817109,0.00016997,2]
[395237887,1764561045208,-479.10757133,0.00016997,2]
[395237888,1764561045221,-1093.81425758,0.00016997,2]
[395237889,1764561045231,-203.55574242,0.00016997,2]
[395237890,1764561045242,-1796.44425758,0.00016997,2]
[395237891,1764561045251,-1453.256,0.00016997,2]
[395237892,1764561045260,-2718.0,0.00017,2]
[395237893,1764561045269,-38110.15694801,0.00017,2]
[395237894,1764561045290,-2007.20332719,0.00017,2]
[395237896,1764561045469,-41.12397596,0.00016996,2]
[395237897,1764561045480,-493.127334,0.00016996,2]
[395237898,1764561045491,-465.74869004,0.00016996,2]
[395237899,1764561045500,-863.14624385,0.00016996,2]
[395237900,1764561045653,-186.70664908,0.000168,2]
[395237901,1764561045663,-136.85375615,0.00016996,2]
[395237902,1764561045675,-1000.0,0.00016996,2]
[395237903,1764561045684,-1000.0,0.00016996,2]
[395237904,1764561045694,-1000.0,0.00016996,2]
[395237905,1764561045703,-1000.0,0.00016996,2]
[395237906,1764561045715,-1000.0,0.00016996,2]
[395237907,1764561045724,-1000.0,0.00016996,2]
[395237908,1764561045733,-1000.0,0.00016996,2]
[395237909,1764561045745,-1000.0,0.00016996,2]
[395237910,1764561045754,-1000.0,0.00016996,2]
[395237911,1764561045764,-1000.0,0.00016996,2]
[395237912,1764561045773,-226519.04380477,0.00017,2]
[395237913,1764561045790,-256.09754239,0.00016996,2]
[395237914,1764561045801,-743.90245761,0.00016996,2]
[395237915,1764561045811,-1085.55754239,0.00017,2]
[395237916,1764561045822,-933.72601264,0.00017,2]
[395237917,1764561045833,-7823.65458347,0.00017,2]
[395237918,1764561045845,-7373.4464878,0.00017,2]
[395237919,1764561045856,-87150.77363297,0.00017,2]
[395237968,1764561448474,929.68,0.00014246,4]
[395237971,1764561515721,-255.96736108,0.00013106,2]
[395237972,1764561515744,-300.0,0.00013205,2]
[395237973,1764561515769,-300.0,0.00013206,2]
[395237974,1764561515792,-1200.0,0.00013206,2]
[395237975,1764561515814,-300.0,0.00013206,2]
[395237976,1764561515836,-150.0,0.00013206,2]
[395237977,1764561515866,-1200.0,0.00013206,2]
[395237978,1764561515892,-500.0,0.00013207,2]
[395237979,1764561515916,-500.0,0.00013207,2]
[395237980,1764561515942,-500.0,0.00013207,2]
[395237981,1764561515967,-500.0,0.00013207,2]
[395237982,1764561515991,-500.0,0.00013207,2]
[395237983,1764561516017,-500.0,0.00013207,2]
[395237984,1764561516042,-500.0,0.00013207,2]
[395237985,1764561516067,-500.0,0.00013207,2]
[395237986,1764561516092,-500.0,0.00013207,2]
[395237987,1764561516116,-500.0,0.00013207,2]
[395237988,1764561516142,-500.0,0.00013207,2]
[395237989,1764561516168,-499.47461986,0.00013207,2]
[395237990,1764561516191,-500.0,0.00013207,2]
[395237991,1764561516215,-500.0,0.00013207,2]
[395237992,1764561516236,-15275.55801906,0.00013208,2]
[395237993,1764561899465,203.0,9.989e-05,2]
[395237994,1764562175756,525.38,7.284e-05,2]
[395237995,1764562175943,525.38,7.667e-05,2]
[395237996,1764562176153,525.38,8.051e-05,2]
[395237997,1764562176350,150.26654016,8.434e-05,2]
[395237998,1764562176380,375.11345984,8.434e-05,2]
[395237999,1764562176555,525.38,8.817e-05,2]
[395238000,1764562176993,525.38,9.201e-05,2]
[395238001,1764562177403,525.38,9.584e-05,2]
[395238002,1764562177811,525.38,9.967e-05,2]
[395238003,1764562178308,525.38,0.00010351,2]
[395238004,1764562178404,525.38,0.00010734,2]
[395238005,1764562178470,525.38,0.00011118,2]
[395238006,1764562178630,525.38,0.00011501,2]
[395238007,1764562178833,525.38,0.00011884,2]
[395238011,1764562231839,-525.38,0.00012268,2]
[395238012,1764562231850,-525.38,0.00012651,2]
[395238013,1764562231861,-525.38,0.00013034,2]
[395238014,1764562231871,-395.90168275,0.00013207,2]
[395238015,1764562231882,-1200.0,0.00013207,2]
[395238016,1764562231893,-14138.45331725,0.00013208,2]
[395238017,1764562231906,-3989.70716369,0.00013208,2]
[395238018,1764562231916,-525.38,0.00013418,2]
[395238019,1764562231926,-250.0,0.00013494,2]
[395238020,1764562231937,-172.34480859,0.00013498,2]
[395238021,1764562231948,-150.0,0.00013598,2]
[395238022,1764562231958,-500.0,0.00013698,2]
[395238023,1764562231968,-272.31531384,0.00013698,2]
[395238024,1764562231979,-500.0,0.00013698,2]
[395238025,1764562231990,-500.0,0.00013698,2]
[395238026,1764562232001,-500.0,0.00013698,2]
[395238027,1764562232014,-929.68,0.00013698,2]
[395238028,1764562232025,-500.0,0.00013699,2]
[395238029,1764562232036,-500.0,0.00013699,2]
[395238030,1764562232047,-152.78195525,0.00013699,2]
[395238031,1764562232058,-500.0,0.00013699,2]
[395238032,1764562232069,-500.0,0.00013699,2]
[395238033,1764562232082,-500.0,0.00013699,2]
[395238034,1764562232092,-121.62333392,0.00013699,2]
[395238035,1764562232104,-378.37666608,0.00013699,2]
[395238036,1764562232115,-331.01522486,0.00013699,2]
[395238037,1764562232133,-264.65801317,0.00013699,2]
[395238038,1764562232144,-500.0,0.00013699,2]
[395238039,1764562232156,-72.47611484,0.00013801,2]
[395238040,1764562232174,-452.90388516,0.00013801,2]
[395238041,1764562232184,-1858.32,0.00013928,2]
[395238042,1764562232194,-1858.32,0.00013928,2]
[395238043,1764562232204,-334729.44513706,0.00013938,2]
[395238044,1764562232216,-70385.39418508,0.00013938,2]
[395238045,1764562232228,-33696.43527164,0.00013938,2]
[395238046,1764562232240,-96152.85622885,0.00013938,2]
[395238047,1764562232251,-479.58345571,0.00013938,2]
[395238048,1764562232266,-453.95773948,0.00013938,2]
[395238049,1764562232278,-434.57723662,0.00013938,2]
[395238050,1764562232289,-867.26202952,0.00013938,2]
[395238051,1764562232301,-436.60011272,0.00013938,2]
[395238101,1764562238190,-864.83525164,0.00013938,2]
[395238102,1764562238204,-420.7544419,0.00013938,2]
[395238103,1764562238311,-2116.94641147,0.00013938,2]
[395238104,1764562238325,-274.20517282,0.00013938,2]
[395238105,1764562238351,-4445.01637548,0.00013938,2]
[395238106,1764562238427,-260.25,0.00013938,2]
[395238107,1764562238518,-9318.81407723,0.00013938,2]
[395238230,1764562239895,-204663.06687278,0.00013938,2]
[395238232,1764562239907,-929.68,0.00013972,3]
[395238234,1764562239920,-209.29156892,0.00014037,2]
[395238236,1764562239931,-500.0,0.00014037,2]
[395238237,1764562239943,-176.84118212,0.00014037,2]
[395238238,1764562239955,-500.0,0.00014037,2]
[395238239,1764562239967,-248.87414484,0.00014037,2]
[395238240,1764562239978,-6626.81406724,0.00014038,2]
[395238241,1764562239990,-1420.77,0.00014038,2]
[395238242,1764562240002,-999.99,0.00014038,2]
[395238243,1764562240013,-4930.16,0.00014038,2]
[395238244,1764562240025,-150.99,0.00014038,2]
[395238245,1764562240036,-9999.99,0.00014038,2]
[395238246,1764562240048,-9999.99,0.00014038,2]
[395238247,1764562240061,-169.56,0.00014039,2]
[395238248,1764562240074,-500.0,0.00014039,2]
[395238249,1764562240090,-500.0,0.00014039,2]
[395238250,1764562240101,-500.0,0.00014039,2]
[395238251,1764562240112,-500.0,0.00014039,2]
[395238252,1764562240123,-500.0,0.00014039,2]
[395238253,1764562240133,-500.0,0.00014039,2]
[395238254,1764562240141,-151.0,0.00014039,2]
[395238255,1764562240151,-500.0,0.00014039,2]
[395238256,1764562240164,-151.0,0.00014039,2]
[395238257,1764562240175,-500.0,0.00014039,2]